Workbook

Sheet Sheet1
A1: Agent | B1: Date Listed | C1: Area | D1: List Price | E1: Bedrooms | F1: Baths | G1: SqFt | H1: Type | I1: Pool | J1: Sold | K1: Per Sq Ft
A2: Adams | B2: 2009-10-28 | C2: Central | D2: 199000 | E2: 3 | F2: 2.5 | G2: 1510 | H2: Condo | I2: FALSE | J2: FALSE | K2: =Table1[List Price]/Table1[SqFt] -> 131.7880795
A3: Adams | B3: 2009-09-07 | C3: Central | D3: 214500 | E3: 4 | F3: 2.5 | G3: 1862 | H3: Single Family | I3: TRUE | J3: FALSE | K3: =Table1[List Price]/Table1[SqFt] -> 115.1987111
A4: Adams | B4: 2009-05-17 | C4: Central | D4: 265000 | E4: 4 | F4: 3 | G4: 1905 | H4: Single Family | I4: FALSE | J4: FALSE | K4: =Table1[List Price]/Table1[SqFt] -> 139.1076115
A5: Adams | B5: 2009-08-07 | C5: Central | D5: 268500 | E5: 4 | F5: 2.5 | G5: 1911 | H5: Single Family | I5: FALSE | J5: FALSE | K5: =Table1[List Price]/Table1[SqFt] -> 140.5023548
A6: Adams | B6: 2009-02-25 | C6: Central | D6: 273500 | E6: 2 | F6: 2 | G6: 1552 | H6: Single Family | I6: TRUE | J6: TRUE | K6: =Table1[List Price]/Table1[SqFt] -> 176.2242268
A7: Adams | B7: 2009-08-20 | C7: Central | D7: 309950 | E7: 4 | F7: 3 | G7: 2800 | H7: Single Family | I7: TRUE | J7: FALSE | K7: =Table1[List Price]/Table1[SqFt] -> 110.6964286
A8: Adams | B8: 2009-02-03 | C8: Central | D8: 325000 | E8: 3 | F8: 2.5 | G8: 1752 | H8: Single Family | I8: FALSE | J8: TRUE | K8: =Table1[List Price]/Table1[SqFt] -> 185.5022831
A9: Jenkins | B9: 2009-02-17 | C9: N. County | D9: 1200500 | E9: 5 | F9: 5 | G9: 4696 | H9: Single Family | I9: TRUE | J9: FALSE | K9: =Table1[List Price]/Table1[SqFt] -> 255.6431005
A10: Romero | B10: 2009-04-23 | C10: N. County | D10: 799000 | E10: 6 | F10: 5 | G10: 4800 | H10: Single Family | I10: FALSE | J10: FALSE | K10: =Table1[List Price]/Table1[SqFt] -> 166.4583333
A11: Hamilton | B11: 2009-03-15 | C11: N. County | D11: 425900 | E11: 5 | F11: 3 | G11: 2414 | H11: Single Family | I11: TRUE | J11: FALSE | K11: =Table1[List Price]/Table1[SqFt] -> 176.4291632
A12: Randolph | B12: 2009-05-13 | C12: N. County | D12: 405000 | E12: 2 | F12: 3 | G12: 2444 | H12: Single Family | I12: TRUE | J12: TRUE | K12: =Table1[List Price]/Table1[SqFt] -> 165.7119476
A13: Adams | B13: 2009-05-10 | C13: S. County | D13: 208750 | E13: 4 | F13: 3 | G13: 2207 | H13: Single Family | I13: TRUE | J13: TRUE | K13: =Table1[List Price]/Table1[SqFt] -> 94.58541006
A14: Shasta | B14: 2009-04-12 | C14: N. County | D14: 398000 | E14: 4 | F14: 2.5 | G14: 2620 | H14: Single Family | I14: FALSE | J14: FALSE | K14: =Table1[List Price]/Table1[SqFt] -> 151.9083969
A15: Kelly | B15: 2009-06-28 | C15: N. County | D15: 389500 | E15: 4 | F15: 2 | G15: 1971 | H15: Single Family | I15: FALSE | J15: FALSE | K15: =Table1[List Price]/Table1[SqFt] -> 197.6154236
A16: Shasta | B16: 2009-09-05 | C16: N. County | D16: 389000 | E16: 4 | F16: 3 | G16: 3109 | H16: Single Family | I16: FALSE | J16: FALSE | K16: =Table1[List Price]/Table1[SqFt] -> 125.1206176
A17: Adams | B17: 2009-06-25 | C17: N. County | D17: 379900 | E17: 3 | F17: 2.5 | G17: 2468 | H17: Condo | I17: FALSE | J17: FALSE | K17: =Table1[List Price]/Table1[SqFt] -> 153.9303079
A18: Adams | B18: 2009-02-27 | C18: N. County | D18: 379000 | E18: 3 | F18: 3 | G18: 2354 | H18: Condo | I18: FALSE | J18: TRUE | K18: =Table1[List Price]/Table1[SqFt] -> 161.0025489
A19: Robinson | B19: 2009-04-18 | C19: N. County | D19: 379000 | E19: 4 | F19: 3 | G19: 3000 | H19: Single Family | I19: FALSE | J19: TRUE | K19: =Table1[List Price]/Table1[SqFt] -> 126.3333333
A20: Barnes | B20: 2009-07-15 | C20: S. County | D20: 208750 | E20: 4 | F20: 2 | G20: 1800 | H20: Single Family | I20: FALSE | J20: FALSE | K20: =Table1[List Price]/Table1[SqFt] -> 115.9722222
A21: Bennet | B21: 2009-05-31 | C21: Central | D21: 229500 | E21: 4 | F21: 3 | G21: 2041 | H21: Single Family | I21: FALSE | J21: TRUE | K21: =Table1[List Price]/Table1[SqFt] -> 112.44488
A22: Bennet | B22: 2009-05-28 | C22: Central | D22: 549000 | E22: 4 | F22: 3 | G22: 1940 | H22: Single Family | I22: TRUE | J22: FALSE | K22: =Table1[List Price]/Table1[SqFt] -> 282.9896907
A23: Shasta | B23: 2009-08-03 | C23: N. County | D23: 374900 | E23: 4 | F23: 3 | G23: 3927 | H23: Single Family | I23: FALSE | J23: FALSE | K23: =Table1[List Price]/Table1[SqFt] -> 95.46727782
A24: Lang | B24: 2009-05-22 | C24: N. County | D24: 369900 | E24: 3 | F24: 2.5 | G24: 2030 | H24: Condo | I24: TRUE | J24: FALSE | K24: =Table1[List Price]/Table1[SqFt] -> 182.2167488
A25: Romero | B25: 2009-02-16 | C25: N. County | D25: 369900 | E25: 4 | F25: 3 | G25: 1988 | H25: Condo | I25: FALSE | J25: TRUE | K25: =Table1[List Price]/Table1[SqFt] -> 186.0663984
A26: Bennet | B26: 2009-07-15 | C26: S. County | D26: 229900 | E26: 3 | F26: 2.5 | G26: 1580 | H26: Single Family | I26: TRUE | J26: FALSE | K26: =Table1[List Price]/Table1[SqFt] -> 145.5063291
A27: Chung | B27: 2009-07-27 | C27: Central | D27: 236900 | E27: 3 | F27: 2 | G27: 1700 | H27: Single Family | I27: FALSE | J27: FALSE | K27: =Table1[List Price]/Table1[SqFt] -> 139.3529412
A28: Chung | B28: 2009-09-15 | C28: Central | D28: 339900 | E28: 4 | F28: 2 | G28: 2238 | H28: Single Family | I28: FALSE | J28: FALSE | K28: =Table1[List Price]/Table1[SqFt] -> 151.8766756
A29: Chung | B29: 2009-05-10 | C29: Central | D29: 375000 | E29: 4 | F29: 3 | G29: 2467 | H29: Single Family | I29: TRUE | J29: FALSE | K29: =Table1[List Price]/Table1[SqFt] -> 152.0064856
A30: Chung | B30: 2009-04-10 | C30: S. County | D30: 205000 | E30: 3 | F30: 2.5 | G30: 2001 | H30: Single Family | I30: TRUE | J30: FALSE | K30: =Table1[List Price]/Table1[SqFt] -> 102.4487756
A31: Chung | B31: 2009-08-22 | C31: S. County | D31: 229500 | E31: 4 | F31: 2.5 | G31: 2284 | H31: Condo | I31: FALSE | J31: FALSE | K31: =Table1[List Price]/Table1[SqFt] -> 100.4816112
A32: Chung | B32: 2009-10-19 | C32: S. County | D32: 235990 | E32: 5 | F32: 3 | G32: 2723 | H32: Condo | I32: FALSE | J32: FALSE | K32: =Table1[List Price]/Table1[SqFt] -> 86.66544253
A33: Chung | B33: 2009-07-24 | C33: S. County | D33: 239900 | E33: 4 | F33: 3 | G33: 2260 | H33: Single Family | I33: FALSE | J33: FALSE | K33: =Table1[List Price]/Table1[SqFt] -> 106.1504425
A34: Chung | B34: 2009-09-21 | C34: S. County | D34: 245000 | E34: 4 | F34: 3 | G34: 2084 | H34: Single Family | I34: FALSE | J34: FALSE | K34: =Table1[List Price]/Table1[SqFt] -> 117.56238
A35: Chung | B35: 2009-11-06 | C35: S. County | D35: 264900 | E35: 4 | F35: 2.5 | G35: 2488 | H35: Condo | I35: FALSE | J35: FALSE | K35: =Table1[List Price]/Table1[SqFt] -> 106.4710611
A36: Daily | B36: 2009-10-22 | C36: Central | D36: 340000 | E36: 4 | F36: 2.5 | G36: 2517 | H36: Condo | I36: FALSE | J36: FALSE | K36: =Table1[List Price]/Table1[SqFt] -> 135.0814462
A37: Daily | B37: 2009-03-11 | C37: Central | D37: 354000 | E37: 4 | F37: 2 | G37: 2088 | H37: Single Family | I37: FALSE | J37: FALSE | K37: =Table1[List Price]/Table1[SqFt] -> 169.5402299
A38: Daily | B38: 2009-03-16 | C38: S. County | D38: 204900 | E38: 3 | F38: 2.5 | G38: 1630 | H38: Single Family | I38: FALSE | J38: TRUE | K38: =Table1[List Price]/Table1[SqFt] -> 125.7055215
A39: Daily | B39: 2009-08-31 | C39: S. County | D39: 225911 | E39: 4 | F39: 2.5 | G39: 1908 | H39: Single Family | I39: FALSE | J39: TRUE | K39: =Table1[List Price]/Table1[SqFt] -> 118.4019916
A40: Daily | B40: 2009-02-17 | C40: S. County | D40: 289000 | E40: 3 | F40: 2 | G40: 1627 | H40: Single Family | I40: FALSE | J40: TRUE | K40: =Table1[List Price]/Table1[SqFt] -> 177.6275353
A41: Daily | B41: 2009-06-07 | C41: S. County | D41: 360000 | E41: 5 | F41: 3 | G41: 2112 | H41: Single Family | I41: TRUE | J41: TRUE | K41: =Table1[List Price]/Table1[SqFt] -> 170.4545455
A42: Hamilton | B42: 2009-09-17 | C42: Central | D42: 225911 | E42: 4 | F42: 3 | G42: 2285 | H42: Single Family | I42: TRUE | J42: FALSE | K42: =Table1[List Price]/Table1[SqFt] -> 98.86695842
A43: Hamilton | B43: 2009-02-12 | C43: Central | D43: 285000 | E43: 2 | F43: 1 | G43: 2036 | H43: Single Family | I43: FALSE | J43: TRUE | K43: =Table1[List Price]/Table1[SqFt] -> 139.9803536
A44: Shasta | B44: 2009-08-11 | C44: N. County | D44: 369900 | E44: 5 | F44: 3 | G44: 2477 | H44: Single Family | I44: FALSE | J44: FALSE | K44: =Table1[List Price]/Table1[SqFt] -> 149.3338716
A45: Hamilton | B45: 2009-05-16 | C45: S. County | D45: 304900 | E45: 4 | F45: 3 | G45: 2350 | H45: Single Family | I45: FALSE | J45: TRUE | K45: =Table1[List Price]/Table1[SqFt] -> 129.7446809
A46: Jenkins | B46: 2009-04-30 | C46: Central | D46: 319000 | E46: 4 | F46: 2 | G46: 1690 | H46: Condo | I46: TRUE | J46: FALSE | K46: =Table1[List Price]/Table1[SqFt] -> 188.7573964
A47: Robinson | B47: 2009-06-02 | C47: N. County | D47: 359900 | E47: 3 | F47: 3 | G47: 1839 | H47: Condo | I47: FALSE | J47: TRUE | K47: =Table1[List Price]/Table1[SqFt] -> 195.7041871
A48: Romero | B48: 2009-08-22 | C48: N. County | D48: 359900 | E48: 3 | F48: 2 | G48: 2198 | H48: Condo | I48: TRUE | J48: FALSE | K48: =Table1[List Price]/Table1[SqFt] -> 163.7397634
A49: Lang | B49: 2009-07-12 | C49: N. County | D49: 359000 | E49: 3 | F49: 2.5 | G49: 2210 | H49: Single Family | I49: FALSE | J49: FALSE | K49: =Table1[List Price]/Table1[SqFt] -> 162.4434389
A50: Barnes | B50: 2009-07-15 | C50: N. County | D50: 355000 | E50: 4 | F50: 2.5 | G50: 2647 | H50: Condo | I50: TRUE | J50: FALSE | K50: =Table1[List Price]/Table1[SqFt] -> 134.1140914
A51: Jenkins | B51: 2009-04-14 | C51: S. County | D51: 247500 | E51: 4 | F51: 3 | G51: 2000 | H51: Single Family | I51: FALSE | J51: FALSE | K51: =Table1[List Price]/Table1[SqFt] -> 123.75
A52: Jenkins | B52: 2009-06-14 | C52: S. County | D52: 249000 | E52: 3 | F52: 2.5 | G52: 1730 | H52: Condo | I52: FALSE | J52: TRUE | K52: =Table1[List Price]/Table1[SqFt] -> 143.9306358
A53: Jenkins | B53: 2009-03-22 | C53: S. County | D53: 338876 | E53: 4 | F53: 2.5 | G53: 2612 | H53: Single Family | I53: FALSE | J53: FALSE | K53: =Table1[List Price]/Table1[SqFt] -> 129.7381317
A54: Kelly | B54: 2009-01-27 | C54: Central | D54: 309950 | E54: 4 | F54: 3 | G54: 2800 | H54: Single Family | I54: FALSE | J54: TRUE | K54: =Table1[List Price]/Table1[SqFt] -> 110.6964286
A55: Kelly | B55: 2009-10-30 | C55: Central | D55: 345000 | E55: 3 | F55: 2 | G55: 2694 | H55: Single Family | I55: FALSE | J55: FALSE | K55: =Table1[List Price]/Table1[SqFt] -> 128.0623608
A56: Barnes | B56: 2009-04-10 | C56: N. County | D56: 350000 | E56: 3 | F56: 2.5 | G56: 1991 | H56: Condo | I56: FALSE | J56: TRUE | K56: =Table1[List Price]/Table1[SqFt] -> 175.7910598
A57: Kelly | B57: 2009-10-01 | C57: S. County | D57: 249900 | E57: 2 | F57: 1 | G57: 1101 | H57: Condo | I57: FALSE | J57: FALSE | K57: =Table1[List Price]/Table1[SqFt] -> 226.9754768
A58: Lang | B58: 2009-03-27 | C58: Central | D58: 229900 | E58: 4 | F58: 3 | G58: 2006 | H58: Single Family | I58: FALSE | J58: FALSE | K58: =Table1[List Price]/Table1[SqFt] -> 114.6061815
A59: Lang | B59: 2009-03-17 | C59: Central | D59: 239900 | E59: 2 | F59: 2 | G59: 1248 | H59: Condo | I59: FALSE | J59: FALSE | K59: =Table1[List Price]/Table1[SqFt] -> 192.2275641
A60: Lang | B60: 2009-11-02 | C60: Central | D60: 243000 | E60: 4 | F60: 2.5 | G60: 1914 | H60: Single Family | I60: FALSE | J60: FALSE | K60: =Table1[List Price]/Table1[SqFt] -> 126.9592476
A61: Lang | B61: 2009-10-17 | C61: Central | D61: 250000 | E61: 4 | F61: 3 | G61: 1943 | H61: Single Family | I61: FALSE | J61: FALSE | K61: =Table1[List Price]/Table1[SqFt] -> 128.6670098
A62: Jenkins | B62: 2009-05-20 | C62: N. County | D62: 349900 | E62: 4 | F62: 3 | G62: 2290 | H62: Single Family | I62: TRUE | J62: TRUE | K62: =Table1[List Price]/Table1[SqFt] -> 152.7947598
A63: Shasta | B63: 2009-10-21 | C63: N. County | D63: 349000 | E63: 3 | F63: 2.5 | G63: 1727 | H63: Condo | I63: TRUE | J63: TRUE | K63: =Table1[List Price]/Table1[SqFt] -> 202.0845397
A64: Shasta | B64: 2009-10-02 | C64: N. County | D64: 349000 | E64: 3 | F64: 2 | G64: 1810 | H64: Condo | I64: TRUE | J64: TRUE | K64: =Table1[List Price]/Table1[SqFt] -> 192.8176796
A65: Shasta | B65: 2009-08-24 | C65: N. County | D65: 349000 | E65: 3 | F65: 2.5 | G65: 2000 | H65: Single Family | I65: TRUE | J65: FALSE | K65: =Table1[List Price]/Table1[SqFt] -> 174.5
A66: Lang | B66: 2009-05-22 | C66: S. County | D66: 225911 | E66: 4 | F66: 2.5 | G66: 1908 | H66: Single Family | I66: TRUE | J66: FALSE | K66: =Table1[List Price]/Table1[SqFt] -> 118.4019916
A67: Lang | B67: 2009-07-09 | C67: S. County | D67: 245000 | E67: 4 | F67: 3 | G67: 2047 | H67: Single Family | I67: FALSE | J67: TRUE | K67: =Table1[List Price]/Table1[SqFt] -> 119.6873473
A68: Lang | B68: 2009-04-11 | C68: S. County | D68: 325000 | E68: 4 | F68: 3 | G68: 2770 | H68: Single Family | I68: FALSE | J68: FALSE | K68: =Table1[List Price]/Table1[SqFt] -> 117.3285199
A69: Lang | B69: 2009-05-08 | C69: S. County | D69: 325000 | E69: 4 | F69: 3 | G69: 2800 | H69: Condo | I69: TRUE | J69: TRUE | K69: =Table1[List Price]/Table1[SqFt] -> 116.0714286
A70: Lang | B70: 2009-11-06 | C70: S. County | D70: 360000 | E70: 3 | F70: 2.5 | G70: 2330 | H70: Single Family | I70: FALSE | J70: FALSE | K70: =Table1[List Price]/Table1[SqFt] -> 154.5064378
A71: Peterson | B71: 2009-10-28 | C71: Central | D71: 227500 | E71: 4 | F71: 3 | G71: 1990 | H71: Single Family | I71: TRUE | J71: FALSE | K71: =Table1[List Price]/Table1[SqFt] -> 114.321608
A72: Peterson | B72: 2009-10-28 | C72: Central | D72: 272500 | E72: 4 | F72: 3 | G72: 2006 | H72: Single Family | I72: FALSE | J72: FALSE | K72: =Table1[List Price]/Table1[SqFt] -> 135.8424726
A73: Peterson | B73: 2009-04-02 | C73: Central | D73: 364900 | E73: 4 | F73: 2.5 | G73: 2507 | H73: Single Family | I73: FALSE | J73: FALSE | K73: =Table1[List Price]/Table1[SqFt] -> 145.5524531
A74: Adams | B74: 2009-06-12 | C74: N. County | D74: 349000 | E74: 4 | F74: 2.5 | G74: 2730 | H74: Condo | I74: TRUE | J74: TRUE | K74: =Table1[List Price]/Table1[SqFt] -> 127.8388278
A75: Lang | B75: 2009-08-10 | C75: N. County | D75: 349000 | E75: 4 | F75: 3 | G75: 3930 | H75: Single Family | I75: TRUE | J75: FALSE | K75: =Table1[List Price]/Table1[SqFt] -> 88.80407125
A76: Barnes | B76: 2009-08-29 | C76: N. County | D76: 345000 | E76: 4 | F76: 3 | G76: 2388 | H76: Condo | I76: TRUE | J76: TRUE | K76: =Table1[List Price]/Table1[SqFt] -> 144.4723618
A77: Peterson | B77: 2009-07-15 | C77: S. County | D77: 225000 | E77: 4 | F77: 3 | G77: 2013 | H77: Single Family | I77: TRUE | J77: FALSE | K77: =Table1[List Price]/Table1[SqFt] -> 111.7734724
A78: Peterson | B78: 2009-05-10 | C78: S. County | D78: 227500 | E78: 4 | F78: 3 | G78: 1905 | H78: Condo | I78: FALSE | J78: TRUE | K78: =Table1[List Price]/Table1[SqFt] -> 119.4225722
A79: Peterson | B79: 2009-05-14 | C79: S. County | D79: 240000 | E79: 3 | F79: 2.5 | G79: 1595 | H79: Condo | I79: FALSE | J79: TRUE | K79: =Table1[List Price]/Table1[SqFt] -> 150.4702194
A80: Peterson | B80: 2009-03-18 | C80: S. County | D80: 269900 | E80: 4 | F80: 2.5 | G80: 1911 | H80: Single Family | I80: FALSE | J80: FALSE | K80: =Table1[List Price]/Table1[SqFt] -> 141.2349555
A81: Peterson | B81: 2009-04-30 | C81: S. County | D81: 297500 | E81: 4 | F81: 3.5 | G81: 2170 | H81: Single Family | I81: FALSE | J81: TRUE | K81: =Table1[List Price]/Table1[SqFt] -> 137.0967742
A82: Peterson | B82: 2009-09-09 | C82: S. County | D82: 317500 | E82: 4 | F82: 3 | G82: 2367 | H82: Single Family | I82: FALSE | J82: FALSE | K82: =Table1[List Price]/Table1[SqFt] -> 134.1360372
A83: Peterson | B83: 2009-10-15 | C83: S. County | D83: 339900 | E83: 4 | F83: 3 | G83: 2687 | H83: Single Family | I83: FALSE | J83: TRUE | K83: =Table1[List Price]/Table1[SqFt] -> 126.4979531
A84: Peterson | B84: 2009-09-20 | C84: S. County | D84: 365000 | E84: 5 | F84: 3 | G84: 3938 | H84: Single Family | I84: FALSE | J84: FALSE | K84: =Table1[List Price]/Table1[SqFt] -> 92.68664297
A85: Randolph | B85: 2009-09-22 | C85: Central | D85: 149900 | E85: 2 | F85: 1 | G85: 1234 | H85: Single Family | I85: FALSE | J85: FALSE | K85: =Table1[List Price]/Table1[SqFt] -> 121.4748784
A86: Randolph | B86: 2009-02-26 | C86: Central | D86: 242500 | E86: 3 | F86: 2.5 | G86: 1902 | H86: Single Family | I86: FALSE | J86: TRUE | K86: =Table1[List Price]/Table1[SqFt] -> 127.4973712
A87: Randolph | B87: 2009-10-25 | C87: Central | D87: 290000 | E87: 4 | F87: 2 | G87: 2400 | H87: Single Family | I87: FALSE | J87: FALSE | K87: =Table1[List Price]/Table1[SqFt] -> 120.8333333
A88: Randolph | B88: 2009-08-31 | C88: Central | D88: 389900 | E88: 4 | F88: 2.5 | G88: 2284 | H88: Single Family | I88: FALSE | J88: TRUE | K88: =Table1[List Price]/Table1[SqFt] -> 170.709282
A89: Adams | B89: 2009-05-04 | C89: N. County | D89: 339900 | E89: 3 | F89: 2 | G89: 1828 | H89: Single Family | I89: TRUE | J89: TRUE | K89: =Table1[List Price]/Table1[SqFt] -> 185.940919
A90: Peterson | B90: 2009-04-26 | C90: N. County | D90: 309900 | E90: 5 | F90: 3 | G90: 2447 | H90: Condo | I90: TRUE | J90: FALSE | K90: =Table1[List Price]/Table1[SqFt] -> 126.6448713
A91: Randolph | B91: 2009-07-31 | C91: S. County | D91: 205500 | E91: 4 | F91: 2.5 | G91: 1751 | H91: Single Family | I91: FALSE | J91: FALSE | K91: =Table1[List Price]/Table1[SqFt] -> 117.3615077
A92: Robinson | B92: 2009-09-23 | C92: Central | D92: 239900 | E92: 4 | F92: 3 | G92: 2278 | H92: Single Family | I92: FALSE | J92: FALSE | K92: =Table1[List Price]/Table1[SqFt] -> 105.3116769
A93: Robinson | B93: 2009-08-20 | C93: Central | D93: 338876 | E93: 4 | F93: 3 | G93: 2483 | H93: Single Family | I93: TRUE | J93: FALSE | K93: =Table1[List Price]/Table1[SqFt] -> 136.4784535
A94: Robinson | B94: 2009-02-13 | C94: Central | D94: 375000 | E94: 4 | F94: 3 | G94: 2368 | H94: Single Family | I94: TRUE | J94: TRUE | K94: =Table1[List Price]/Table1[SqFt] -> 158.3614865
A95: Barnes | B95: 2009-03-26 | C95: N. County | D95: 299000 | E95: 3 | F95: 2 | G95: 2050 | H95: Condo | I95: FALSE | J95: FALSE | K95: =Table1[List Price]/Table1[SqFt] -> 145.8536585
A96: Barnes | B96: 2009-04-02 | C96: N. County | D96: 264900 | E96: 3 | F96: 3 | G96: 2495 | H96: Condo | I96: FALSE | J96: FALSE | K96: =Table1[List Price]/Table1[SqFt] -> 106.1723447
A97: Robinson | B97: 2009-04-14 | C97: S. County | D97: 215000 | E97: 1 | F97: 2 | G97: 1552 | H97: Condo | I97: FALSE | J97: TRUE | K97: =Table1[List Price]/Table1[SqFt] -> 138.5309278
A98: Robinson | B98: 2009-09-16 | C98: S. County | D98: 300000 | E98: 4 | F98: 3 | G98: 2650 | H98: Condo | I98: FALSE | J98: FALSE | K98: =Table1[List Price]/Table1[SqFt] -> 113.2075472
A99: Robinson | B99: 2009-08-08 | C99: S. County | D99: 349000 | E99: 4 | F99: 3 | G99: 1838 | H99: Single Family | I99: FALSE | J99: FALSE | K99: =Table1[List Price]/Table1[SqFt] -> 189.8803047
A100: Romero | B100: 2009-04-04 | C100: Central | D100: 235910 | E100: 4 | F100: 3 | G100: 2285 | H100: Single Family | I100: TRUE | J100: TRUE | K100: =Table1[List Price]/Table1[SqFt] -> 103.2428884
A101: Romero | B101: 2009-05-20 | C101: Central | D101: 250000 | E101: 3 | F101: 2 | G101: 2066 | H101: Single Family | I101: FALSE | J101: FALSE | K101: =Table1[List Price]/Table1[SqFt] -> 121.0067764
A102: Lang | B102: 2009-09-11 | C102: N. County | D102: 264900 | E102: 3 | F102: 2.5 | G102: 2062 | H102: Condo | I102: FALSE | J102: FALSE | K102: =Table1[List Price]/Table1[SqFt] -> 128.4675073
A103: Randolph | B103: 2009-05-10 | C103: N. County | D103: 259900 | E103: 3 | F103: 2.5 | G103: 2122 | H103: Condo | I103: FALSE | J103: TRUE | K103: =Table1[List Price]/Table1[SqFt] -> 122.4787936
A104: Peterson | B104: 2009-05-04 | C104: N. County | D104: 259900 | E104: 4 | F104: 3 | G104: 1734 | H104: Condo | I104: FALSE | J104: TRUE | K104: =Table1[List Price]/Table1[SqFt] -> 149.8846597
A105: Jenkins | B105: 2009-04-28 | C105: N. County | D105: 248500 | E105: 4 | F105: 2.5 | G105: 2101 | H105: Single Family | I105: TRUE | J105: TRUE | K105: =Table1[List Price]/Table1[SqFt] -> 118.2770109
A106: Romero | B106: 2009-09-14 | C106: S. County | D106: 229500 | E106: 3 | F106: 2 | G106: 1694 | H106: Single Family | I106: FALSE | J106: FALSE | K106: =Table1[List Price]/Table1[SqFt] -> 135.4781582
A107: Shasta | B107: 2009-06-21 | C107: Central | D107: 119000 | E107: 1 | F107: 1 | G107: 950 | H107: Condo | I107: FALSE | J107: FALSE | K107: =Table1[List Price]/Table1[SqFt] -> 125.2631579
A108: Shasta | B108: 2009-04-12 | C108: Central | D108: 215000 | E108: 3 | F108: 1.75 | G108: 2157 | H108: Single Family | I108: TRUE | J108: TRUE | K108: =Table1[List Price]/Table1[SqFt] -> 99.6754752
A109: Shasta | B109: 2009-06-05 | C109: Central | D109: 319000 | E109: 3 | F109: 2.5 | G109: 2586 | H109: Condo | I109: FALSE | J109: FALSE | K109: =Table1[List Price]/Table1[SqFt] -> 123.3565352
A110: Shasta | B110: 2009-06-07 | C110: Central | D110: 335000 | E110: 3 | F110: 2.5 | G110: 2000 | H110: Single Family | I110: TRUE | J110: TRUE | K110: =Table1[List Price]/Table1[SqFt] -> 167.5
A111: Shasta | B111: 2009-03-01 | C111: Central | D111: 350000 | E111: 3 | F111: 2 | G111: 2275 | H111: Single Family | I111: TRUE | J111: FALSE | K111: =Table1[List Price]/Table1[SqFt] -> 153.8461538
A112: Shasta | B112: 2009-04-26 | C112: Central | D112: 365000 | E112: 3 | F112: 2.5 | G112: 1871 | H112: Single Family | I112: FALSE | J112: FALSE | K112: =Table1[List Price]/Table1[SqFt] -> 195.0828434
A113: Shasta | B113: 2009-05-26 | C113: Central | D113: 625000 | E113: 6 | F113: 4 | G113: 3950 | H113: Single Family | I113: TRUE | J113: FALSE | K113: =Table1[List Price]/Table1[SqFt] -> 158.2278481
A114: Barnes | B114: 2009-10-16 | C114: N. County | D114: 239900 | E114: 4 | F114: 3 | G114: 2041 | H114: Condo | I114: FALSE | J114: FALSE | K114: =Table1[List Price]/Table1[SqFt] -> 117.5404214
A115: Jenkins | B115: 2009-05-11 | C115: N. County | D115: 238000 | E115: 4 | F115: 2.5 | G115: 1590 | H115: Condo | I115: FALSE | J115: TRUE | K115: =Table1[List Price]/Table1[SqFt] -> 149.6855346
A116: Peterson | B116: 2009-07-07 | C116: N. County | D116: 235990 | E116: 4 | F116: 2 | G116: 1656 | H116: Condo | I116: TRUE | J116: FALSE | K116: =Table1[List Price]/Table1[SqFt] -> 142.5060386
A117: Bennet | B117: 2009-05-10 | C117: N. County | D117: 229900 | E117: 3 | F117: 3 | G117: 2266 | H117: Condo | I117: FALSE | J117: FALSE | K117: =Table1[List Price]/Table1[SqFt] -> 101.4563107
A118: Bennet | B118: 2009-06-15 | C118: N. County | D118: 229900 | E118: 4 | F118: 3 | G118: 2041 | H118: Condo | I118: FALSE | J118: FALSE | K118: =Table1[List Price]/Table1[SqFt] -> 112.6408623
A119: Bennet | B119: 2009-07-20 | C119: N. County | D119: 229500 | E119: 6 | F119: 3 | G119: 2700 | H119: Single Family | I119: TRUE | J119: FALSE | K119: =Table1[List Price]/Table1[SqFt] -> 85
A120: Romero | B120: 2009-08-17 | C120: N. County | D120: 215000 | E120: 4 | F120: 2.5 | G120: 1640 | H120: Condo | I120: TRUE | J120: FALSE | K120: =Table1[List Price]/Table1[SqFt] -> 131.097561
A121: Shasta | B121: 2009-10-05 | C121: S. County | D121: 205500 | E121: 4 | F121: 2.5 | G121: 2036 | H121: Condo | I121: FALSE | J121: TRUE | K121: =Table1[List Price]/Table1[SqFt] -> 100.9332024
A122: Shasta | B122: 2009-05-14 | C122: S. County | D122: 236900 | E122: 1 | F122: 2 | G122: 1483 | H122: Condo | I122: FALSE | J122: FALSE | K122: =Table1[List Price]/Table1[SqFt] -> 159.7437626
A123: Shasta | B123: 2009-08-10 | C123: S. County | D123: 238000 | E123: 3 | F123: 2.5 | G123: 2300 | H123: Single Family | I123: TRUE | J123: FALSE | K123: =Table1[List Price]/Table1[SqFt] -> 103.4782609
A124: Shasta | B124: 2009-10-17 | C124: S. County | D124: 249000 | E124: 4 | F124: 2.5 | G124: 1902 | H124: Single Family | I124: FALSE | J124: FALSE | K124: =Table1[List Price]/Table1[SqFt] -> 130.9148265
A125: Shasta | B125: 2009-08-27 | C125: S. County | D125: 249900 | E125: 3 | F125: 2 | G125: 2050 | H125: Single Family | I125: FALSE | J125: TRUE | K125: =Table1[List Price]/Table1[SqFt] -> 121.902439
A126: Shasta | B126: 2009-06-23 | C126: S. County | D126: 574900 | E126: 5 | F126: 4 | G126: 4700 | H126: Single Family | I126: FALSE | J126: FALSE | K126: =Table1[List Price]/Table1[SqFt] -> 122.3191489
